[Event "January 9 Early 2024"]
[Site "https://www.chess.com"]
[Date "2024.01.11"]
[Round "1"]
[White "Agrest, Inna"]
[Black "Cuenca Jimenez, Jose Fernando"]
[Result "0-1"]
[Board "285"]
[TimeControl "180+1"]
[WhiteFideId "1708830"]
[BlackFideId "2255570"]
[WhiteElo "2352"]
[BlackElo "2681"]
[WhiteTeam "SWE"]
[BlackTeam "ESP"]
[WhiteClock "0:00:04"]
[BlackClock "0:00:05"]

1. e4 {[%clk 0:03:00]}  d6 {[%clk 0:02:59]} 2. d4 {[%clk 0:03:00]}  Nf6 {[%clk 0:02:59]} 3. Nc3 {[%clk 0:02:54]}  e5 {[%clk 0:02:59]} 4. Nf3 {[%clk 0:02:50]}  Nbd7 {[%clk 0:02:57]} 5. g4 {[%clk 0:02:46]}  Nxg4 {[%clk 0:02:54]} 6. Rg1 {[%clk 0:02:35]}  Ngf6 {[%clk 0:02:55]} 7. Be3 {[%clk 0:02:33]}  c6 {[%clk 0:02:54]} 8. Bc4 {[%clk 0:02:30]}  h6 {[%clk 0:02:53]} 9. Bb3 {[%clk 0:02:21]}  b5 {[%clk 0:02:52]} 10. a3 {[%clk 0:02:12]}  Qa5 {[%clk 0:02:46]} 11. Bd2 {[%clk 0:02:01]}  Qc7 {[%clk 0:02:40]} 12. Qe2 {[%clk 0:01:57]}  a6 {[%clk 0:02:31]} 13. O-O-O {[%clk 0:01:46]}  Bb7 {[%clk 0:02:26]} 14. Kb1 {[%clk 0:01:36]}  Nb6 {[%clk 0:02:22]} 15. dxe5 {[%clk 0:01:29]}  dxe5 {[%clk 0:02:22]} 16. Be3 {[%clk 0:01:20]}  c5 {[%clk 0:02:18]} 17. Bd5 {[%clk 0:01:13]}  Nfxd5 {[%clk 0:01:59]} 18. Nxd5 {[%clk 0:00:48]}  Bxd5 {[%clk 0:01:51]} 19. exd5 {[%clk 0:00:46]}  O-O-O {[%clk 0:01:51]} 20. Bc1 {[%clk 0:00:38]}  f6 {[%clk 0:01:44]} 21. Qe4 {[%clk 0:00:37]}  Qb7 {[%clk 0:01:43]} 22. Qf5+ {[%clk 0:00:23]}  Kb8 {[%clk 0:01:42]} 23. d6 {[%clk 0:00:19]}  Bxd6 {[%clk 0:01:41]} 24. Nh4 {[%clk 0:00:18]}  g5 {[%clk 0:01:25]} 25. Ng6 {[%clk 0:00:16]}  Qh7 {[%clk 0:01:25]} 26. h4 {[%clk 0:00:15]}  Bc7 {[%clk 0:01:23]} 27. Qxf6 {[%clk 0:00:13]}  Rhg8 {[%clk 0:01:13]} 28. h5 {[%clk 0:00:13]}  Kb7 {[%clk 0:01:05]} 29. Nxe5 {[%clk 0:00:12]}  Bxe5 {[%clk 0:00:58]} 30. Qxe5 {[%clk 0:00:13]}  Qc7 {[%clk 0:00:58]} 31. Qe4+ {[%clk 0:00:12]}  Qc6 {[%clk 0:00:58]} 32. Qe5 {[%clk 0:00:12]}  Rd7 {[%clk 0:00:32]} 33. Rge1 {[%clk 0:00:11]}  Rgd8 {[%clk 0:00:30]} 34. Rxd7+ {[%clk 0:00:11]}  Rxd7 {[%clk 0:00:31]} 35. f4 {[%clk 0:00:11]}  gxf4 {[%clk 0:00:27]} 36. Bxf4 {[%clk 0:00:12]}  Qc8 {[%clk 0:00:23]} 37. Qe4+ {[%clk 0:00:12]}  Ka7 {[%clk 0:00:22]} 38. Qg6 {[%clk 0:00:12]}  Nc4 {[%clk 0:00:16]} 39. Qxh6 {[%clk 0:00:11]}  Qb7 {[%clk 0:00:12]} 40. Qe6 {[%clk 0:00:11]}  Rh7 {[%clk 0:00:11]} 41. Qf5 {[%clk 0:00:10]}  Rf7 {[%clk 0:00:06]} 42. Qxc5+ {[%clk 0:00:10]}  Qb6 {[%clk 0:00:06]} 43. Bb8+ {[%clk 0:00:09]}  Kxb8 {[%clk 0:00:05]} 44. Re8+ {[%clk 0:00:08]}  Ka7 {[%clk 0:00:05]} 45. Qc8 {[%clk 0:00:08]}  Qb7 {[%clk 0:00:04]} 46. Qc5+ {[%clk 0:00:08]}  Nb6 {[%clk 0:00:05]} 47. h6 {[%clk 0:00:07]}  Rc7 {[%clk 0:00:04]} 48. Qe5 {[%clk 0:00:07]}  Rh7 {[%clk 0:00:04]} 49. Qc5 {[%clk 0:00:06]}  Qc7 {[%clk 0:00:04]} 50. Qf5 {[%clk 0:00:06]}  Rxh6 {[%clk 0:00:04]} 51. Qf8 {[%clk 0:00:05]}  Rh1+ {[%clk 0:00:04]} 52. Ka2 {[%clk 0:00:05]}  Qc4+ {[%clk 0:00:05]} 53. b3 {[%clk 0:00:04]}  Qxc2# {[%clk 0:00:05]} 0-1

[Event "January 9 Early 2024"]
[Site "https://www.chess.com"]
[Date "2024.01.11"]
[Round "1"]
[White "Gruzman, Ilya"]
[Black "Syaputra, Arifa Rizki"]
[Result "0-1"]
[Board "288"]
[TimeControl "180+1"]
[WhiteFideId "2812703"]
[BlackFideId "7105100"]
[WhiteElo "2399"]
[BlackElo "2724"]
[WhiteTeam "ISR"]
[BlackTeam "INA"]
[WhiteClock "0:00:16"]
[BlackClock "0:00:19"]

1. d4 {[%clk 0:03:00]}  Nf6 {[%clk 0:02:58]} 2. c4 {[%clk 0:03:00]}  e6 {[%clk 0:02:58]} 3. Nf3 {[%clk 0:03:00]}  d5 {[%clk 0:02:55]} 4. Nc3 {[%clk 0:02:59]}  dxc4 {[%clk 0:02:54]} 5. e3 {[%clk 0:02:57]}  a6 {[%clk 0:02:53]} 6. a4 {[%clk 0:02:57]}  c5 {[%clk 0:02:53]} 7. Bxc4 {[%clk 0:02:57]}  Be7 {[%clk 0:02:49]} 8. O-O {[%clk 0:02:56]}  O-O {[%clk 0:02:49]} 9. Qe2 {[%clk 0:02:55]}  Qc7 {[%clk 0:02:45]} 10. Rd1 {[%clk 0:02:54]}  Nc6 {[%clk 0:02:37]} 11. d5 {[%clk 0:02:42]}  exd5 {[%clk 0:02:35]} 12. Nxd5 {[%clk 0:02:43]}  Nxd5 {[%clk 0:02:35]} 13. Bxd5 {[%clk 0:02:43]}  Nb4 {[%clk 0:02:24]} 14. Bc4 {[%clk 0:02:43]}  Bg4 {[%clk 0:02:17]} 15. Bd2 {[%clk 0:02:35]}  Rad8 {[%clk 0:02:05]} 16. Rac1 {[%clk 0:02:22]}  Nc6 {[%clk 0:02:02]} 17. h3 {[%clk 0:02:13]}  Bh5 {[%clk 0:02:02]} 18. Bc3 {[%clk 0:02:11]}  Bd6 {[%clk 0:01:46]} 19. Rd5 {[%clk 0:01:46]}  Bg6 {[%clk 0:01:29]} 20. Rcd1 {[%clk 0:01:30]}  Be7 {[%clk 0:01:28]} 21. Ne5 {[%clk 0:01:04]}  Nxe5 {[%clk 0:01:00]} 22. Bxe5 {[%clk 0:01:00]}  Qc6 {[%clk 0:01:00]} 23. Rxd8 {[%clk 0:00:48]}  Rxd8 {[%clk 0:00:59]} 24. Rxd8+ {[%clk 0:00:46]}  Bxd8 {[%clk 0:01:00]} 25. Qd1 {[%clk 0:00:34]}  Be7 {[%clk 0:00:58]} 26. Bd5 {[%clk 0:00:34]}  Qc8 {[%clk 0:00:48]} 27. Qb3 {[%clk 0:00:35]}  Qf5 {[%clk 0:00:39]} 28. Bg3 {[%clk 0:00:23]}  b5 {[%clk 0:00:36]} 29. axb5 {[%clk 0:00:20]}  axb5 {[%clk 0:00:36]} 30. Bf3 {[%clk 0:00:20]}  c4 {[%clk 0:00:33]} 31. Qa2 {[%clk 0:00:21]}  h5 {[%clk 0:00:28]} 32. Qa8+ {[%clk 0:00:21]}  Kh7 {[%clk 0:00:29]} 33. Kh2 {[%clk 0:00:21]}  Bf6 {[%clk 0:00:26]} 34. e4 {[%clk 0:00:20]}  Qc5 {[%clk 0:00:23]} 35. Qb7 {[%clk 0:00:19]}  Bxb2 {[%clk 0:00:21]} 36. Bd1 {[%clk 0:00:13]}  Be5 {[%clk 0:00:18]} 37. f4 {[%clk 0:00:13]}  h4 {[%clk 0:00:19]} 38. Bxh4 {[%clk 0:00:09]}  Bxf4+ {[%clk 0:00:19]} 39. Bg3 {[%clk 0:00:09]}  Bxg3+ {[%clk 0:00:18]} 40. Kxg3 {[%clk 0:00:10]}  Qe5+ {[%clk 0:00:18]} 41. Kf2 {[%clk 0:00:10]}  Bxe4 {[%clk 0:00:17]} 42. Qc8 {[%clk 0:00:09]}  Qf5+ {[%clk 0:00:17]} 43. Qxf5+ {[%clk 0:00:08]}  Bxf5 {[%clk 0:00:18]} 44. Ke3 {[%clk 0:00:09]}  Kg6 {[%clk 0:00:17]} 45. Kd4 {[%clk 0:00:09]}  Kf6 {[%clk 0:00:17]} 46. g4 {[%clk 0:00:09]}  Bg6 {[%clk 0:00:15]} 47. Kc3 {[%clk 0:00:10]}  Ke5 {[%clk 0:00:15]} 48. Kb4 {[%clk 0:00:10]}  Kd4 {[%clk 0:00:16]} 49. Kxb5 {[%clk 0:00:10]}  c3 {[%clk 0:00:16]} 50. Kb4 {[%clk 0:00:10]}  c2 {[%clk 0:00:17]} 51. Bxc2 {[%clk 0:00:11]}  Bxc2 {[%clk 0:00:18]} 52. g5 {[%clk 0:00:11]}  Bf5 {[%clk 0:00:17]} 53. g6 {[%clk 0:00:12]}  Bxg6 {[%clk 0:00:16]} 54. h4 {[%clk 0:00:13]}  Ke4 {[%clk 0:00:16]} 55. h5 {[%clk 0:00:14]}  Bxh5 {[%clk 0:00:17]} 56. Kc5 {[%clk 0:00:11]}  g5 {[%clk 0:00:17]} 57. Kd6 {[%clk 0:00:12]}  g4 {[%clk 0:00:17]} 58. Ke7 {[%clk 0:00:13]}  g3 {[%clk 0:00:18]} 59. Kf6 {[%clk 0:00:14]}  g2 {[%clk 0:00:18]} 60. Kg5 {[%clk 0:00:15]}  g1=Q+ {[%clk 0:00:19]} 61. Kh4 {[%clk 0:00:16]}  Qg4# {[%clk 0:00:19]} 0-1

[Event "January 9 Early 2024"]
[Site "https://www.chess.com"]
[Date "2024.01.11"]
[Round "1"]
[White "Mammadov, Ziya"]
[Black "Alinasab, Mobina"]
[Result "0-1"]
[Board "289"]
[TimeControl "180+1"]
[WhiteFideId "13418890"]
[BlackFideId "12528897"]
[WhiteElo "1969"]
[BlackElo "2546"]
[WhiteTeam "AZE"]
[BlackTeam "IRI"]
[WhiteClock "0:00:02"]
[BlackClock "0:00:14"]

1. e4 {[%clk 0:02:59]}  c5 {[%clk 0:02:58]} 2. Nf3 {[%clk 0:02:59]}  d6 {[%clk 0:02:58]} 3. d4 {[%clk 0:02:58]}  cxd4 {[%clk 0:02:58]} 4. Nxd4 {[%clk 0:02:59]}  Nf6 {[%clk 0:02:57]} 5. Nc3 {[%clk 0:02:59]}  a6 {[%clk 0:02:58]} 6. f3 {[%clk 0:02:59]}  e5 {[%clk 0:02:57]} 7. Nb3 {[%clk 0:02:58]}  Be6 {[%clk 0:02:58]} 8. Be3 {[%clk 0:02:58]}  Nbd7 {[%clk 0:02:56]} 9. Bg5 {[%clk 0:02:56]}  Be7 {[%clk 0:02:56]} 10. Bxf6 {[%clk 0:02:55]}  Nxf6 {[%clk 0:02:55]} 11. Bd3 {[%clk 0:02:49]}  O-O {[%clk 0:02:55]} 12. Qd2 {[%clk 0:02:49]}  d5 {[%clk 0:02:53]} 13. exd5 {[%clk 0:02:45]}  Nxd5 {[%clk 0:02:54]} 14. Nxd5 {[%clk 0:02:42]}  Qxd5 {[%clk 0:02:54]} 15. Be4 {[%clk 0:02:41]}  Qxd2+ {[%clk 0:02:54]} 16. Nxd2 {[%clk 0:02:42]}  Rab8 {[%clk 0:02:54]} 17. O-O-O {[%clk 0:02:38]}  f5 {[%clk 0:02:54]} 18. Bd3 {[%clk 0:02:36]}  b5 {[%clk 0:02:54]} 19. Kb1 {[%clk 0:02:33]}  Bf6 {[%clk 0:02:52]} 20. Rhe1 {[%clk 0:02:31]}  Rfe8 {[%clk 0:02:49]} 21. b3 {[%clk 0:02:23]}  g6 {[%clk 0:02:48]} 22. c4 {[%clk 0:02:21]}  Bf7 {[%clk 0:02:45]} 23. c5 {[%clk 0:02:07]}  Rec8 {[%clk 0:02:44]} 24. b4 {[%clk 0:02:05]}  a5 {[%clk 0:02:43]} 25. a3 {[%clk 0:02:05]}  Rc6 {[%clk 0:02:31]} 26. g4 {[%clk 0:01:54]}  Be6 {[%clk 0:02:21]} 27. gxf5 {[%clk 0:01:49]}  gxf5 {[%clk 0:02:22]} 28. Bc2 {[%clk 0:01:28]}  axb4 {[%clk 0:02:15]} 29. axb4 {[%clk 0:01:27]}  Ra6 {[%clk 0:02:16]} 30. Nb3 {[%clk 0:01:23]}  Ra4 {[%clk 0:02:01]} 31. Rd6 {[%clk 0:01:12]}  Kf7 {[%clk 0:02:01]} 32. Rb6 {[%clk 0:00:58]}  Rxb6 {[%clk 0:01:50]} 33. cxb6 {[%clk 0:00:59]}  Bd5 {[%clk 0:01:41]} 34. Rd1 {[%clk 0:00:50]}  Bxf3 {[%clk 0:01:40]} 35. b7 {[%clk 0:00:46]}  Bxb7 {[%clk 0:01:36]} 36. Rd7+ {[%clk 0:00:46]}  Kg6 {[%clk 0:01:33]} 37. Rxb7 {[%clk 0:00:45]}  Rxb4 {[%clk 0:01:34]} 38. Kc1 {[%clk 0:00:35]}  e4 {[%clk 0:01:31]} 39. Rd7 {[%clk 0:00:27]}  Be5 {[%clk 0:01:26]} 40. Rd5 {[%clk 0:00:23]}  Bxh2 {[%clk 0:01:22]} 41. Nd4 {[%clk 0:00:19]}  Bf4+ {[%clk 0:00:41]} 42. Kd1 {[%clk 0:00:16]}  h5 {[%clk 0:00:42]} 43. Nxf5 {[%clk 0:00:13]}  Bg5 {[%clk 0:00:40]} 44. Ng3 {[%clk 0:00:13]}  h4 {[%clk 0:00:40]} 45. Nxe4 {[%clk 0:00:13]}  Bf4 {[%clk 0:00:35]} 46. Nc3+ {[%clk 0:00:11]}  Kh6 {[%clk 0:00:33]} 47. Nxb5 {[%clk 0:00:11]}  h3 {[%clk 0:00:31]} 48. Nd4 {[%clk 0:00:11]}  h2 {[%clk 0:00:21]} 49. Nf5+ {[%clk 0:00:10]}  Kg5 {[%clk 0:00:18]} 50. Ng3+ {[%clk 0:00:08]}  Kg4 {[%clk 0:00:18]} 51. Nh1 {[%clk 0:00:04]}  Rb8 {[%clk 0:00:14]} 52. Bf5+ {[%clk 0:00:04]}  Kf3 {[%clk 0:00:14]} 53. Bh3 {[%clk 0:00:03]}  Rb1+ {[%clk 0:00:13]} 54. Kc2 {[%clk 0:00:03]}  Rc1+ {[%clk 0:00:12]} 55. Kd3 {[%clk 0:00:03]}  Rxh1 {[%clk 0:00:13]} 56. Kc4 {[%clk 0:00:03]}  Rc1+ {[%clk 0:00:13]} 57. Kd4 {[%clk 0:00:03]}  h1=Q {[%clk 0:00:14]} 58. Bg2+ {[%clk 0:00:02]}  Qxg2 {[%clk 0:00:14]} 0-1

[Event "January 9 Early 2024"]
[Site "https://www.chess.com"]
[Date "2024.01.11"]
[Round "1"]
[White "Santos Flores, Alberto"]
[Black "Tari, Aryan"]
[Result "1-0"]
[Board "290"]
[TimeControl "180+1"]
[WhiteFideId "3601234"]
[BlackFideId "1510045"]
[WhiteElo "2509"]
[BlackElo "2908"]
[WhiteTeam "ECU"]
[BlackTeam "NOR"]
[WhiteClock "0:00:20"]
[BlackClock "0:00:06"]

1. e4 {[%clk 0:02:54]}  e5 {[%clk 0:02:53]} 2. Nf3 {[%clk 0:02:54]}  Nc6 {[%clk 0:02:53]} 3. Bc4 {[%clk 0:02:54]}  Bc5 {[%clk 0:02:50]} 4. O-O {[%clk 0:02:51]}  Nf6 {[%clk 0:02:50]} 5. d4 {[%clk 0:02:50]}  Bxd4 {[%clk 0:02:39]} 6. Nxd4 {[%clk 0:02:50]}  Nxd4 {[%clk 0:02:40]} 7. Bg5 {[%clk 0:02:51]}  d6 {[%clk 0:02:37]} 8. f4 {[%clk 0:02:51]}  Qe7 {[%clk 0:02:31]} 9. fxe5 {[%clk 0:02:44]}  dxe5 {[%clk 0:02:31]} 10. Nc3 {[%clk 0:02:43]}  c6 {[%clk 0:02:29]} 11. Ne2 {[%clk 0:02:34]}  Bg4 {[%clk 0:02:05]} 12. c3 {[%clk 0:02:27]}  Nxe2+ {[%clk 0:01:55]} 13. Bxe2 {[%clk 0:02:28]}  Bxe2 {[%clk 0:01:22]} 14. Qxe2 {[%clk 0:02:29]}  O-O-O {[%clk 0:01:22]} 15. Bxf6 {[%clk 0:02:18]}  gxf6 {[%clk 0:01:21]} 16. Rf3 {[%clk 0:02:10]}  Rd6 {[%clk 0:01:21]} 17. Raf1 {[%clk 0:02:10]}  Rhd8 {[%clk 0:01:15]} 18. Qe3 {[%clk 0:02:08]}  Kb8 {[%clk 0:01:14]} 19. b4 {[%clk 0:02:05]}  R8d7 {[%clk 0:00:59]} 20. a4 {[%clk 0:01:56]}  Qd8 {[%clk 0:00:59]} 21. a5 {[%clk 0:01:48]}  Rd3 {[%clk 0:00:58]} 22. Qh6 {[%clk 0:01:47]}  Rxf3 {[%clk 0:00:58]} 23. Rxf3 {[%clk 0:01:37]}  Rd1+ {[%clk 0:00:57]} 24. Kf2 {[%clk 0:01:37]}  Rd2+ {[%clk 0:00:51]} 25. Kg1 {[%clk 0:01:26]}  Rd1+ {[%clk 0:00:42]} 26. Kf2 {[%clk 0:01:26]}  c5 {[%clk 0:00:21]} 27. Qxf6 {[%clk 0:01:15]}  Rd2+ {[%clk 0:00:05]} 28. Kg1 {[%clk 0:01:12]}  Rd1+ {[%clk 0:00:05]} 29. Kf2 {[%clk 0:01:04]}  Qd2+ {[%clk 0:00:02]} 30. Kg3 {[%clk 0:01:04]}  cxb4 {[%clk 0:00:01]} 31. Qxe5+ {[%clk 0:00:58]}  Qd6 {[%clk 0:00:02]} 32. Qxd6+ {[%clk 0:00:56]}  Rxd6 {[%clk 0:00:03]} 33. cxb4 {[%clk 0:00:56]}  Rd4 {[%clk 0:00:03]} 34. Rxf7 {[%clk 0:00:52]}  Rxb4 {[%clk 0:00:04]} 35. Rxh7 {[%clk 0:00:50]}  Rxe4 {[%clk 0:00:04]} 36. Rh5 {[%clk 0:00:48]}  b6 {[%clk 0:00:04]} 37. axb6 {[%clk 0:00:48]}  axb6 {[%clk 0:00:05]} 38. h4 {[%clk 0:00:46]}  Kb7 {[%clk 0:00:05]} 39. Rf5 {[%clk 0:00:44]}  Kc6 {[%clk 0:00:05]} 40. h5 {[%clk 0:00:44]}  b5 {[%clk 0:00:05]} 41. h6 {[%clk 0:00:43]}  b4 {[%clk 0:00:05]} 42. Rf8 {[%clk 0:00:30]}  Re7 {[%clk 0:00:04]} 43. Rb8 {[%clk 0:00:29]}  Rh7 {[%clk 0:00:03]} 44. Rxb4 {[%clk 0:00:27]}  Rxh6 {[%clk 0:00:04]} 45. Rd4 {[%clk 0:00:28]}  Rg6+ {[%clk 0:00:03]} 46. Kf3 {[%clk 0:00:25]}  Rf6+ {[%clk 0:00:03]} 47. Rf4 {[%clk 0:00:19]}  Rg6 {[%clk 0:00:03]} 48. g4 {[%clk 0:00:19]}  Kd7 {[%clk 0:00:04]} 49. Re4 {[%clk 0:00:19]}  Rf6+ {[%clk 0:00:03]} 50. Kg3 {[%clk 0:00:19]}  Rg6 {[%clk 0:00:04]} 51. Kf4 {[%clk 0:00:19]}  Rg8 {[%clk 0:00:04]} 52. g5 {[%clk 0:00:19]}  Rf8+ {[%clk 0:00:05]} 53. Kg4 {[%clk 0:00:19]}  Rg8 {[%clk 0:00:05]} 54. Kf5 {[%clk 0:00:20]}  Rf8+ {[%clk 0:00:06]} 55. Kg6 {[%clk 0:00:20]}  Rg8+ {[%clk 0:00:06]} 56. Kf6 {[%clk 0:00:20]}  Rf8+ {[%clk 0:00:07]} 57. Kg7 {[%clk 0:00:21]}  Rf1 {[%clk 0:00:06]} 58. g6 {[%clk 0:00:21]}  Rg1 {[%clk 0:00:06]} 59. Kf7 {[%clk 0:00:21]}  Rf1+ {[%clk 0:00:07]} 60. Kg8 {[%clk 0:00:21]}  Rg1 {[%clk 0:00:07]} 61. g7 {[%clk 0:00:21]}  Rg2 {[%clk 0:00:07]} 62. Kf7 {[%clk 0:00:21]}  Rf2+ {[%clk 0:00:08]} 63. Kg6 {[%clk 0:00:21]}  Rg2+ {[%clk 0:00:08]} 64. Kf6 {[%clk 0:00:21]}  Rf2+ {[%clk 0:00:09]} 65. Kg5 {[%clk 0:00:21]}  Re2 {[%clk 0:00:06]} 66. Rxe2 {[%clk 0:00:20]} 1-0

[Event "January 9 Early 2024"]
[Site "https://www.chess.com"]
[Date "2024.01.11"]
[Round "1"]
[White "Banzea, Alexandru-Bogdan"]
[Black "Zhuk, Valeriy"]
[Result "1-0"]
[Board "292"]
[TimeControl "180+1"]
[WhiteFideId "1232622"]
[BlackFideId "24151254"]
[WhiteElo "2708"]
[BlackElo "2378"]
[WhiteTeam "ROU"]
[BlackTeam "RUS"]
[WhiteClock "0:00:05"]
[BlackClock "0:00:02"]

1. d4 {[%clk 0:03:00]}  d5 {[%clk 0:02:59]} 2. Nc3 {[%clk 0:02:58]}  Nf6 {[%clk 0:02:58]} 3. Bf4 {[%clk 0:02:59]}  Bf5 {[%clk 0:02:56]} 4. f3 {[%clk 0:02:59]}  Nc6 {[%clk 0:02:45]} 5. e4 {[%clk 0:02:57]}  dxe4 {[%clk 0:02:37]} 6. d5 {[%clk 0:02:58]}  Nb4 {[%clk 0:02:37]} 7. Bb5+ {[%clk 0:02:00]}  c6 {[%clk 0:01:58]} 8. dxc6 {[%clk 0:02:01]}  bxc6 {[%clk 0:01:57]} 9. Ba4 {[%clk 0:02:01]}  exf3 {[%clk 0:01:55]} 10. Nxf3 {[%clk 0:02:01]}  Qb6 {[%clk 0:01:47]} 11. Qe2 {[%clk 0:01:20]}  e6 {[%clk 0:01:12]} 12. Ne5 {[%clk 0:01:21]}  Rc8 {[%clk 0:01:09]} 13. g4 {[%clk 0:01:20]}  Bg6 {[%clk 0:01:08]} 14. h4 {[%clk 0:01:21]}  Nfd5 {[%clk 0:01:03]} 15. Bh2 {[%clk 0:01:02]}  Nxc2+ {[%clk 0:00:53]} 16. Bxc2 {[%clk 0:00:58]}  Qxb2 {[%clk 0:00:53]} 17. O-O {[%clk 0:00:28]}  Qxc3 {[%clk 0:00:39]} 18. Bxg6 {[%clk 0:00:21]}  hxg6 {[%clk 0:00:37]} 19. Nxf7 {[%clk 0:00:20]}  Bc5+ {[%clk 0:00:37]} 20. Kh1 {[%clk 0:00:21]}  Rxh4 {[%clk 0:00:22]} 21. Qxe6+ {[%clk 0:00:20]}  Ne7 {[%clk 0:00:22]} 22. Ne5 {[%clk 0:00:12]}  Rxh2+ {[%clk 0:00:13]} 23. Kxh2 {[%clk 0:00:13]}  Qd2+ {[%clk 0:00:12]} 24. Kg3 {[%clk 0:00:10]}  Qd5 {[%clk 0:00:02]} 25. Qxd5 {[%clk 0:00:07]}  cxd5 {[%clk 0:00:03]} 26. Rad1 {[%clk 0:00:07]}  Bd6 {[%clk 0:00:03]} 27. Rfe1 {[%clk 0:00:06]}  Nc6 {[%clk 0:00:01]} 28. Rxd5 {[%clk 0:00:06]}  Bxe5+ {[%clk 0:00:02]} 29. Rdxe5+ {[%clk 0:00:07]}  Nxe5 {[%clk 0:00:02]} 30. Rxe5+ {[%clk 0:00:08]}  Kf7 {[%clk 0:00:03]} 31. Ra5 {[%clk 0:00:09]}  Rc3+ {[%clk 0:00:03]} 32. Kh4 {[%clk 0:00:09]}  Rc7 {[%clk 0:00:03]} 33. Kg5 {[%clk 0:00:09]}  Rd7 {[%clk 0:00:03]} 34. Ra6 {[%clk 0:00:10]}  Rc7 {[%clk 0:00:02]} 35. a4 {[%clk 0:00:11]}  Rd7 {[%clk 0:00:03]} 36. a5 {[%clk 0:00:11]}  Rc7 {[%clk 0:00:03]} 37. Rd6 {[%clk 0:00:11]}  Re7 {[%clk 0:00:02]} 38. a6 {[%clk 0:00:11]}  Re5+ {[%clk 0:00:03]} 39. Kf4 {[%clk 0:00:10]}  Re7 {[%clk 0:00:02]} 40. g5 {[%clk 0:00:11]}  Rc7 {[%clk 0:00:02]} 41. Ke5 {[%clk 0:00:11]}  Ke7 {[%clk 0:00:02]} 42. Rxg6 {[%clk 0:00:10]}  Rc5+ {[%clk 0:00:02]} 43. Kd4 {[%clk 0:00:10]}  Ra5 {[%clk 0:00:01]} 44. Rxg7+ {[%clk 0:00:11]}  Ke6 {[%clk 0:00:02]} 45. Rxa7 {[%clk 0:00:11]}  Kf5 {[%clk 0:00:02]} 46. Kc4 {[%clk 0:00:07]}  Kxg5 {[%clk 0:00:03]} 47. Kb4 {[%clk 0:00:08]}  Ra1 {[%clk 0:00:03]} 48. Kb5 {[%clk 0:00:08]}  Kf6 {[%clk 0:00:03]} 49. Rd7 {[%clk 0:00:06]}  Ke6 {[%clk 0:00:03]} 50. Rd4 {[%clk 0:00:06]}  Ke5 {[%clk 0:00:03]} 51. Rb4 {[%clk 0:00:04]}  Kd5 {[%clk 0:00:03]} 52. Kb6 {[%clk 0:00:04]}  Kd6 {[%clk 0:00:03]} 53. a7 {[%clk 0:00:04]}  Ra3 {[%clk 0:00:02]} 54. Kb7 {[%clk 0:00:05]}  Kc5 {[%clk 0:00:02]} 55. Rb1 {[%clk 0:00:05]} 1-0

[Event "January 9 Early 2024"]
[Site "https://www.chess.com"]
[Date "2024.01.11"]
[Round "1"]
[White "Alekseenko, Kirill"]
[Black "Dinu, Dumitru-Daniel"]
[Result "1-0"]
[Board "293"]
[TimeControl "180+1"]
[WhiteFideId "4135539"]
[BlackFideId "1208403"]
[WhiteElo "2924"]
[BlackElo "2493"]
[WhiteTeam "AUT"]
[BlackTeam "ROU"]
[WhiteClock "0:00:14"]
[BlackClock "0:00:01"]

1. e4 {[%clk 0:03:00]}  c5 {[%clk 0:02:59]} 2. Nf3 {[%clk 0:03:01]}  d6 {[%clk 0:02:59]} 3. d4 {[%clk 0:03:01]}  cxd4 {[%clk 0:02:59]} 4. Nxd4 {[%clk 0:03:02]}  Nf6 {[%clk 0:02:59]} 5. Nc3 {[%clk 0:03:01]}  a6 {[%clk 0:02:59]} 6. Be2 {[%clk 0:03:02]}  g6 {[%clk 0:02:51]} 7. Be3 {[%clk 0:02:57]}  Bg7 {[%clk 0:02:50]} 8. f3 {[%clk 0:02:57]}  O-O {[%clk 0:02:40]} 9. Qd2 {[%clk 0:02:57]}  b5 {[%clk 0:02:35]} 10. a4 {[%clk 0:02:56]}  b4 {[%clk 0:02:32]} 11. Na2 {[%clk 0:02:55]}  a5 {[%clk 0:02:30]} 12. c3 {[%clk 0:02:55]}  e5 {[%clk 0:02:09]} 13. Nb5 {[%clk 0:02:54]}  d5 {[%clk 0:02:07]} 14. cxb4 {[%clk 0:02:46]}  d4 {[%clk 0:01:51]} 15. Bg5 {[%clk 0:02:44]}  h6 {[%clk 0:01:36]} 16. Bh4 {[%clk 0:02:44]}  Nxe4 {[%clk 0:01:18]} 17. Bxd8 {[%clk 0:02:44]}  Nxd2 {[%clk 0:01:19]} 18. Kxd2 {[%clk 0:02:02]}  Rxd8 {[%clk 0:01:18]} 19. bxa5 {[%clk 0:02:02]}  Rxa5 {[%clk 0:01:09]} 20. Nb4 {[%clk 0:02:02]}  Bf8 {[%clk 0:01:05]} 21. Nd3 {[%clk 0:02:01]}  Nc6 {[%clk 0:01:02]} 22. Rhc1 {[%clk 0:01:58]}  Bd7 {[%clk 0:00:57]} 23. Rc4 {[%clk 0:01:42]}  Rda8 {[%clk 0:00:35]} 24. Rac1 {[%clk 0:01:33]}  R8a6 {[%clk 0:00:22]} 25. b3 {[%clk 0:01:16]}  f5 {[%clk 0:00:21]} 26. Nc5 {[%clk 0:01:15]}  Bxc5 {[%clk 0:00:18]} 27. Rxc5 {[%clk 0:01:16]}  e4 {[%clk 0:00:14]} 28. fxe4 {[%clk 0:01:12]}  fxe4 {[%clk 0:00:15]} 29. Bc4+ {[%clk 0:01:12]}  Kf8 {[%clk 0:00:14]} 30. Rf1+ {[%clk 0:01:12]}  Ke7 {[%clk 0:00:15]} 31. Rf7+ {[%clk 0:01:11]}  Kd8 {[%clk 0:00:15]} 32. Rd5 {[%clk 0:01:04]}  e3+ {[%clk 0:00:15]} 33. Ke2 {[%clk 0:01:01]}  Nb8 {[%clk 0:00:15]} 34. Rf8+ {[%clk 0:00:59]}  Ke7 {[%clk 0:00:15]} 35. Rxb8 {[%clk 0:00:59]}  Bg4+ {[%clk 0:00:16]} 36. Ke1 {[%clk 0:00:50]}  Rxa4 {[%clk 0:00:15]} 37. bxa4 {[%clk 0:00:35]}  Rxa4 {[%clk 0:00:15]} 38. Rb7+ {[%clk 0:00:33]}  Kf6 {[%clk 0:00:09]} 39. Rf7+ {[%clk 0:00:26]}  Kxf7 {[%clk 0:00:06]} 40. Rxd4+ {[%clk 0:00:27]}  Kf6 {[%clk 0:00:05]} 41. Rxg4 {[%clk 0:00:27]}  Ra1+ {[%clk 0:00:04]} 42. Ke2 {[%clk 0:00:27]}  h5 {[%clk 0:00:04]} 43. Re4 {[%clk 0:00:25]}  g5 {[%clk 0:00:04]} 44. Nd4 {[%clk 0:00:21]}  Rc1 {[%clk 0:00:03]} 45. Re6+ {[%clk 0:00:21]}  Kg7 {[%clk 0:00:03]} 46. Bd3 {[%clk 0:00:18]}  Kf7 {[%clk 0:00:02]} 47. Rc6 {[%clk 0:00:17]}  Rh1 {[%clk 0:00:02]} 48. h3 {[%clk 0:00:17]}  g4 {[%clk 0:00:02]} 49. hxg4 {[%clk 0:00:16]}  hxg4 {[%clk 0:00:03]} 50. Kxe3 {[%clk 0:00:17]}  Rg1 {[%clk 0:00:02]} 51. Be4 {[%clk 0:00:17]}  Ke7 {[%clk 0:00:02]} 52. Rg6 {[%clk 0:00:16]}  Ra1 {[%clk 0:00:02]} 53. Nc6+ {[%clk 0:00:15]}  Kf7 {[%clk 0:00:02]} 54. Ne5+ {[%clk 0:00:16]}  Ke7 {[%clk 0:00:02]} 55. Kf4 {[%clk 0:00:15]}  Ra4 {[%clk 0:00:02]} 56. Rxg4 {[%clk 0:00:15]}  Ke6 {[%clk 0:00:02]} 57. Rg6+ {[%clk 0:00:15]}  Ke7 {[%clk 0:00:03]} 58. g4 {[%clk 0:00:16]}  Ra1 {[%clk 0:00:03]} 59. Rg7+ {[%clk 0:00:15]}  Kf8 {[%clk 0:00:02]} 60. Rb7 {[%clk 0:00:15]}  Rf1+ {[%clk 0:00:02]} 61. Bf3 {[%clk 0:00:15]}  Re1 {[%clk 0:00:02]} 62. g5 {[%clk 0:00:16]}  Rg1 {[%clk 0:00:02]} 63. Kf5 {[%clk 0:00:16]}  Rf1 {[%clk 0:00:01]} 64. g6 {[%clk 0:00:17]}  Kg8 {[%clk 0:00:01]} 65. Kf6 {[%clk 0:00:14]} 1-0